[Event "January 2 Early 2024"]
[Site "https://www.chess.com"]
[Date "2024.01.02"]
[Round "7"]
[White "Marcziter, Dmitrii"]
[Black "Chandra, Vania Vindy"]
[Result "0-1"]
[Board "186"]
[TimeControl "180+1"]
[WhiteFideId "13900765"]
[BlackFideId "7103441"]
[WhiteElo "2385"]
[BlackElo "2163"]
[WhiteTeam "GER"]
[BlackTeam "INA"]
[WhiteClock "0:00:00"]
[BlackClock "0:00:12"]

1. d4 {[%clk 0:02:59]}  d5 {[%clk 0:02:58]} 2. c4 {[%clk 0:02:58]}  e6 {[%clk 0:02:58]} 3. Nc3 {[%clk 0:02:58]}  Nf6 {[%clk 0:02:57]} 4. Bg5 {[%clk 0:02:58]}  Be7 {[%clk 0:02:58]} 5. e3 {[%clk 0:02:58]}  O-O {[%clk 0:02:57]} 6. cxd5 {[%clk 0:02:58]}  Nxd5 {[%clk 0:02:56]} 7. Bxe7 {[%clk 0:02:57]}  Nxe7 {[%clk 0:02:54]} 8. Nf3 {[%clk 0:02:55]}  b6 {[%clk 0:02:54]} 9. Bd3 {[%clk 0:02:53]}  Bb7 {[%clk 0:02:55]} 10. Qc2 {[%clk 0:02:51]}  Ng6 {[%clk 0:02:51]} 11. h4 {[%clk 0:02:50]}  Re8 {[%clk 0:02:46]} 12. h5 {[%clk 0:02:50]}  Nf8 {[%clk 0:02:47]} 13. O-O-O {[%clk 0:02:40]}  Nc6 {[%clk 0:02:43]} 14. Qe2 {[%clk 0:02:34]}  Nb4 {[%clk 0:02:42]} 15. Bb1 {[%clk 0:02:31]}  a5 {[%clk 0:02:24]} 16. a3 {[%clk 0:02:31]}  Ba6 {[%clk 0:02:21]} 17. Qd2 {[%clk 0:02:31]}  Nd5 {[%clk 0:02:20]} 18. Be4 {[%clk 0:02:20]}  b5 {[%clk 0:02:15]} 19. Nxd5 {[%clk 0:02:12]}  exd5 {[%clk 0:02:10]} 20. Bd3 {[%clk 0:02:13]}  b4 {[%clk 0:02:06]} 21. a4 {[%clk 0:02:11]}  Bc4 {[%clk 0:02:04]} 22. Ne5 {[%clk 0:02:09]}  Qd6 {[%clk 0:01:59]} 23. Nxc4 {[%clk 0:02:03]}  dxc4 {[%clk 0:01:52]} 24. Bxc4 {[%clk 0:02:04]}  c5 {[%clk 0:01:26]} 25. b3 {[%clk 0:01:59]}  cxd4 {[%clk 0:01:26]} 26. Qxd4 {[%clk 0:01:59]}  Qe7 {[%clk 0:01:22]} 27. Kb1 {[%clk 0:01:37]}  Ne6 {[%clk 0:01:16]} 28. Qe5 {[%clk 0:01:35]}  Nc5 {[%clk 0:01:07]} 29. Qxe7 {[%clk 0:01:30]}  Rxe7 {[%clk 0:01:08]} 30. Bd5 {[%clk 0:01:23]}  Rae8 {[%clk 0:01:02]} 31. Rd4 {[%clk 0:01:18]}  h6 {[%clk 0:01:00]} 32. Rc1 {[%clk 0:01:16]}  Nd7 {[%clk 0:00:57]} 33. Bc6 {[%clk 0:01:12]}  Nf6 {[%clk 0:00:52]} 34. Bxe8 {[%clk 0:01:10]}  Rxe8 {[%clk 0:00:53]} 35. Rdc4 {[%clk 0:01:08]}  Kh7 {[%clk 0:00:49]} 36. g4 {[%clk 0:01:06]}  Ne4 {[%clk 0:00:48]} 37. R1c2 {[%clk 0:00:56]}  Nc3+ {[%clk 0:00:41]} 38. R4xc3 {[%clk 0:00:53]}  bxc3 {[%clk 0:00:41]} 39. Rxc3 {[%clk 0:00:54]}  Re5 {[%clk 0:00:34]} 40. Kc2 {[%clk 0:00:52]}  g6 {[%clk 0:00:31]} 41. hxg6+ {[%clk 0:00:48]}  Kxg6 {[%clk 0:00:30]} 42. f4 {[%clk 0:00:48]}  Rd5 {[%clk 0:00:30]} 43. Rc6+ {[%clk 0:00:47]}  f6 {[%clk 0:00:29]} 44. Kc3 {[%clk 0:00:44]}  Kf7 {[%clk 0:00:19]} 45. Rb6 {[%clk 0:00:40]}  Rc5+ {[%clk 0:00:18]} 46. Kd4 {[%clk 0:00:40]}  Rc1 {[%clk 0:00:17]} 47. Rb5 {[%clk 0:00:38]}  Rd1+ {[%clk 0:00:18]} 48. Kc3 {[%clk 0:00:37]}  Re1 {[%clk 0:00:17]} 49. Kd2 {[%clk 0:00:36]}  Rg1 {[%clk 0:00:18]} 50. Rxa5 {[%clk 0:00:35]}  Rxg4 {[%clk 0:00:18]} 51. f5 {[%clk 0:00:29]}  Ke7 {[%clk 0:00:16]} 52. Rd5 {[%clk 0:00:27]}  h5 {[%clk 0:00:12]} 53. a5 {[%clk 0:00:23]}  h4 {[%clk 0:00:12]} 54. Ke2 {[%clk 0:00:21]}  h3 {[%clk 0:00:12]} 55. Rd1 {[%clk 0:00:20]}  h2 {[%clk 0:00:11]} 56. Rh1 {[%clk 0:00:19]}  Rg2+ {[%clk 0:00:12]} 57. Kd3 {[%clk 0:00:18]}  Ra2 {[%clk 0:00:13]} 58. b4 {[%clk 0:00:17]}  Kd6 {[%clk 0:00:13]} 59. Kc4 {[%clk 0:00:17]}  Kc6 {[%clk 0:00:14]} 60. b5+ {[%clk 0:00:16]}  Kd6 {[%clk 0:00:14]} 61. Rd1+ {[%clk 0:00:15]}  Kc7 {[%clk 0:00:14]} 62. Kd5 {[%clk 0:00:13]}  Rd2+ {[%clk 0:00:13]} 63. Rxd2 {[%clk 0:00:12]}  h1=Q+ {[%clk 0:00:13]} 64. Ke6 {[%clk 0:00:11]}  Qe1 {[%clk 0:00:13]} 65. Rd7+ {[%clk 0:00:09]}  Kc8 {[%clk 0:00:13]} 66. Rd5 {[%clk 0:00:06]}  Qxe3+ {[%clk 0:00:13]} 67. Kxf6 {[%clk 0:00:06]}  Qb3 {[%clk 0:00:12]} 68. Rc5+ {[%clk 0:00:04]}  Kb8 {[%clk 0:00:12]} 69. a6 {[%clk 0:00:03]}  Qb4 {[%clk 0:00:12]} 70. Re5 {[%clk 0:00:00]}  Qd6+ {[%clk 0:00:12]} 0-1

[Event "January 2 Early 2024"]
[Site "https://www.chess.com"]
[Date "2024.01.02"]
[Round "7"]
[White "Zhuk, Valeriy"]
[Black "Mende, Andreas"]
[Result "1-0"]
[Board "187"]
[TimeControl "180+1"]
[WhiteFideId "24151254"]
[BlackFideId "4631102"]
[WhiteElo "2382"]
[BlackElo "2150"]
[WhiteTeam "RUS"]
[BlackTeam "GER"]
[WhiteClock "0:00:11"]
[BlackClock "0:00:16"]

1. e4 {[%clk 0:02:59]}  c5 {[%clk 0:02:59]} 2. Nf3 {[%clk 0:02:58]}  Nc6 {[%clk 0:03:00]} 3. d4 {[%clk 0:02:59]}  cxd4 {[%clk 0:02:59]} 4. Nxd4 {[%clk 0:03:00]}  Nf6 {[%clk 0:02:59]} 5. Nc3 {[%clk 0:03:00]}  e5 {[%clk 0:03:00]} 6. Ndb5 {[%clk 0:02:59]}  d6 {[%clk 0:03:00]} 7. Bg5 {[%clk 0:03:00]}  a6 {[%clk 0:03:00]} 8. Na3 {[%clk 0:03:00]}  b5 {[%clk 0:03:00]} 9. Nd5 {[%clk 0:03:01]}  Be7 {[%clk 0:03:00]} 10. Bxf6 {[%clk 0:03:01]}  Bxf6 {[%clk 0:03:01]} 11. c3 {[%clk 0:03:02]}  Bg5 {[%clk 0:03:01]} 12. Nc2 {[%clk 0:03:00]}  O-O {[%clk 0:03:01]} 13. a4 {[%clk 0:03:00]}  bxa4 {[%clk 0:02:59]} 14. Rxa4 {[%clk 0:03:00]}  a5 {[%clk 0:02:59]} 15. h4 {[%clk 0:02:57]}  Bh6 {[%clk 0:02:57]} 16. Bc4 {[%clk 0:02:54]}  Rb8 {[%clk 0:02:56]} 17. Ra2 {[%clk 0:02:53]}  Kh8 {[%clk 0:02:53]} 18. g4 {[%clk 0:02:34]}  Bf4 {[%clk 0:02:49]} 19. Qf3 {[%clk 0:02:29]}  Be6 {[%clk 0:02:45]} 20. Nce3 {[%clk 0:02:02]}  Bxe3 {[%clk 0:02:41]} 21. Nxe3 {[%clk 0:02:02]}  Bxc4 {[%clk 0:02:41]} 22. Nxc4 {[%clk 0:02:03]}  d5 {[%clk 0:02:29]} 23. exd5 {[%clk 0:02:03]}  e4 {[%clk 0:02:29]} 24. Qd1 {[%clk 0:02:01]}  Ne7 {[%clk 0:02:23]} 25. d6 {[%clk 0:01:45]}  Ng6 {[%clk 0:02:22]} 26. Rxa5 {[%clk 0:01:26]}  Rxb2 {[%clk 0:02:16]} 27. Nxb2 {[%clk 0:01:13]}  Qxa5 {[%clk 0:02:15]} 28. Qd4 {[%clk 0:01:13]}  Ne5 {[%clk 0:02:02]} 29. Kf1 {[%clk 0:01:02]}  Nf3 {[%clk 0:01:59]} 30. Qb4 {[%clk 0:00:56]}  Qa6+ {[%clk 0:01:36]} 31. Kg2 {[%clk 0:00:52]}  Rd8 {[%clk 0:01:29]} 32. Nc4 {[%clk 0:00:33]}  Qc6 {[%clk 0:01:15]} 33. Ra1 {[%clk 0:00:20]}  Nxh4+ {[%clk 0:01:13]} 34. Kg3 {[%clk 0:00:20]}  Nf3 {[%clk 0:01:06]} 35. Qb6 {[%clk 0:00:20]}  Qe8 {[%clk 0:00:57]} 36. Ra7 {[%clk 0:00:17]}  Rb8 {[%clk 0:00:51]} 37. d7 {[%clk 0:00:15]}  Qd8 {[%clk 0:00:48]} 38. Qxd8+ {[%clk 0:00:13]}  Rxd8 {[%clk 0:00:47]} 39. Nd6 {[%clk 0:00:13]}  Ne5 {[%clk 0:00:46]} 40. Kf4 {[%clk 0:00:12]}  Ng6+ {[%clk 0:00:41]} 41. Kxe4 {[%clk 0:00:12]}  Kg8 {[%clk 0:00:41]} 42. Kd5 {[%clk 0:00:12]}  Nf8 {[%clk 0:00:41]} 43. Kc6 {[%clk 0:00:12]}  Ne6 {[%clk 0:00:40]} 44. Nb7 {[%clk 0:00:11]}  Rb8 {[%clk 0:00:36]} 45. Ra1 {[%clk 0:00:11]}  g5 {[%clk 0:00:31]} 46. Re1 {[%clk 0:00:11]}  Nd8+ {[%clk 0:00:29]} 47. Nxd8 {[%clk 0:00:11]}  Rxd8 {[%clk 0:00:16]} 48. Re8+ {[%clk 0:00:11]} 1-0

[Event "January 2 Early 2024"]
[Site "https://www.chess.com"]
[Date "2024.01.02"]
[Round "7"]
[White "Gerbelli Neto, Eduardo"]
[Black "Crocker, Philip J"]
[Result "1-0"]
[Board "189"]
[TimeControl "180+1"]
[WhiteFideId "2103281"]
[BlackFideId "403180"]
[WhiteElo "2339"]
[BlackElo "2076"]
[WhiteTeam "BRA"]
[BlackTeam "ENG"]
[WhiteClock "0:01:30"]
[BlackClock "0:00:06"]

1. e4 {[%clk 0:03:00]}  Nf6 {[%clk 0:02:58]} 2. Nc3 {[%clk 0:03:00]}  e5 {[%clk 0:02:58]} 3. f4 {[%clk 0:03:00]}  d5 {[%clk 0:02:57]} 4. fxe5 {[%clk 0:03:00]}  Nxe4 {[%clk 0:02:57]} 5. d3 {[%clk 0:03:00]}  Nxc3 {[%clk 0:02:57]} 6. bxc3 {[%clk 0:03:01]}  d4 {[%clk 0:02:57]} 7. Nf3 {[%clk 0:03:02]}  Nc6 {[%clk 0:02:55]} 8. Be2 {[%clk 0:03:02]}  dxc3 {[%clk 0:02:48]} 9. O-O {[%clk 0:03:02]}  Qd5 {[%clk 0:02:48]} 10. Ng5 {[%clk 0:02:48]}  Bc5+ {[%clk 0:02:40]} 11. Kh1 {[%clk 0:02:47]}  O-O {[%clk 0:02:36]} 12. Bh5 {[%clk 0:02:39]}  g6 {[%clk 0:02:22]} 13. Ne4 {[%clk 0:02:36]}  Qxe5 {[%clk 0:02:10]} 14. Bf4 {[%clk 0:02:32]}  Qxe4 {[%clk 0:01:51]} 15. dxe4 {[%clk 0:02:31]}  gxh5 {[%clk 0:01:43]} 16. Qxh5 {[%clk 0:02:26]}  Bd4 {[%clk 0:01:32]} 17. Bh6 {[%clk 0:02:25]}  Be6 {[%clk 0:01:12]} 18. Rad1 {[%clk 0:01:48]}  Be5 {[%clk 0:01:03]} 19. Rd5 {[%clk 0:01:40]}  Bxd5 {[%clk 0:00:12]} 20. exd5 {[%clk 0:01:39]}  Bd4 {[%clk 0:00:10]} 21. dxc6 {[%clk 0:01:38]}  bxc6 {[%clk 0:00:11]} 22. Bxf8 {[%clk 0:01:37]}  Rxf8 {[%clk 0:00:06]} 23. Rf4 {[%clk 0:01:30]} 1-0

[Event "January 2 Early 2024"]
[Site "https://www.chess.com"]
[Date "2024.01.02"]
[Round "7"]
[White "Winkels, Marcel"]
[Black "Alonso Garcia, Rene Marcial"]
[Result "1-0"]
[Board "191"]
[TimeControl "180+1"]
[WhiteFideId "1003887"]
[BlackFideId "3500276"]
[WhiteElo "2002"]
[BlackElo "2275"]
[WhiteTeam "NED"]
[BlackTeam "FID"]
[WhiteClock "0:01:30"]
[BlackClock "0:01:58"]

1. e4 {[%clk 0:03:00]}  e5 {[%clk 0:02:59]} 2. Nf3 {[%clk 0:03:00]}  Nc6 {[%clk 0:02:59]} 3. Bb5 {[%clk 0:03:01]}  a6 {[%clk 0:02:58]} 4. Ba4 {[%clk 0:03:00]}  Nf6 {[%clk 0:02:57]} 5. O-O {[%clk 0:03:00]}  b5 {[%clk 0:02:57]} 6. Bb3 {[%clk 0:02:59]}  Bb7 {[%clk 0:02:58]} 7. Re1 {[%clk 0:02:57]}  Bc5 {[%clk 0:02:57]} 8. c3 {[%clk 0:02:56]}  d6 {[%clk 0:02:56]} 9. d4 {[%clk 0:02:56]}  Bb6 {[%clk 0:02:57]} 10. a4 {[%clk 0:02:53]}  h6 {[%clk 0:02:56]} 11. axb5 {[%clk 0:02:52]}  axb5 {[%clk 0:02:55]} 12. Rxa8 {[%clk 0:02:51]}  Qxa8 {[%clk 0:02:56]} 13. Na3 {[%clk 0:02:50]}  O-O {[%clk 0:02:52]} 14. Nxb5 {[%clk 0:02:41]}  exd4 {[%clk 0:02:51]} 15. cxd4 {[%clk 0:02:34]}  Na5 {[%clk 0:02:49]} 16. Bc2 {[%clk 0:02:24]}  Nxe4 {[%clk 0:02:43]} 17. Qd3 {[%clk 0:02:14]}  Nf6 {[%clk 0:02:32]} 18. Qf5 {[%clk 0:01:57]}  Re8 {[%clk 0:02:20]} 19. Rxe8+ {[%clk 0:01:35]}  Qxe8 {[%clk 0:02:16]} 20. Be3 {[%clk 0:01:33]}  Qxb5 {[%clk 0:01:58]} 21. Qxb5 {[%clk 0:01:30]} 1-0

[Event "January 2 Early 2024"]
[Site "https://www.chess.com"]
[Date "2024.01.02"]
[Round "7"]
[White "Thake, Conrad"]
[Black "Pesotskiy, Mikhail"]
[Result "0-1"]
[Board "195"]
[TimeControl "180+1"]
[WhiteFideId "5602947"]
[BlackFideId "34164453"]
[WhiteElo "1888"]
[BlackElo "2487"]
[WhiteTeam "MLT"]
[BlackTeam "RUS"]
[WhiteClock "0:00:00"]
[BlackClock "0:01:16"]

1. c4 {[%clk 0:03:00]}  e5 {[%clk 0:02:57]} 2. Nc3 {[%clk 0:03:00]}  Nc6 {[%clk 0:02:57]} 3. g3 {[%clk 0:02:57]}  Bc5 {[%clk 0:02:56]} 4. Bg2 {[%clk 0:02:55]}  a6 {[%clk 0:02:56]} 5. e3 {[%clk 0:02:53]}  d6 {[%clk 0:02:57]} 6. Nge2 {[%clk 0:02:51]}  Ba7 {[%clk 0:02:58]} 7. O-O {[%clk 0:02:51]}  h5 {[%clk 0:02:57]} 8. h4 {[%clk 0:02:48]}  g5 {[%clk 0:02:57]} 9. hxg5 {[%clk 0:02:42]}  Qxg5 {[%clk 0:02:58]} 10. d4 {[%clk 0:02:42]}  h4 {[%clk 0:02:53]} 11. dxe5 {[%clk 0:02:38]}  hxg3 {[%clk 0:02:44]} 12. Ne4 {[%clk 0:02:02]}  gxf2+ {[%clk 0:02:40]} 13. Kxf2 {[%clk 0:01:46]}  Qh4+ {[%clk 0:02:37]} 14. N2g3 {[%clk 0:01:31]}  Nxe5 {[%clk 0:02:15]} 15. Rh1 {[%clk 0:01:09]}  Ng4+ {[%clk 0:02:15]} 16. Kf3 {[%clk 0:01:05]}  Nh2+ {[%clk 0:02:14]} 17. Rxh2 {[%clk 0:00:55]}  Qxh2 {[%clk 0:02:15]} 18. Qa4+ {[%clk 0:00:38]}  Bd7 {[%clk 0:02:09]} 19. Qb4 {[%clk 0:00:38]}  O-O-O {[%clk 0:02:08]} 20. Bd2 {[%clk 0:00:37]}  f5 {[%clk 0:01:41]} 21. Ng5 {[%clk 0:00:25]}  Bc6+ {[%clk 0:01:37]} 22. e4 {[%clk 0:00:21]}  fxe4+ {[%clk 0:01:33]} 23. Kg4 {[%clk 0:00:14]}  Qxg2 {[%clk 0:01:25]} 24. Rf1 {[%clk 0:00:04]}  Nh6+ {[%clk 0:01:20]} 25. Kf4 {[%clk 0:00:00]}  Rhf8+ {[%clk 0:01:16]} 0-1

[Event "January 2 Early 2024"]
[Site "https://www.chess.com"]
[Date "2024.01.02"]
[Round "7"]
[White "Alimpic, Aleksa"]
[Black "neri_gaite"]
[Result "1-0"]
[Board "196"]
[TimeControl "180+1"]
[WhiteFideId "974323"]
[WhiteElo "2481"]
[BlackElo "2013"]
[WhiteTeam "SRB"]
[WhiteClock "0:00:15"]
[BlackClock "0:00:42"]

1. d4 {[%clk 0:03:00]}  d5 {[%clk 0:02:57]} 2. c4 {[%clk 0:02:59]}  e6 {[%clk 0:02:55]} 3. Nc3 {[%clk 0:02:59]}  Nf6 {[%clk 0:02:56]} 4. Bg5 {[%clk 0:02:53]}  Be7 {[%clk 0:02:55]} 5. e3 {[%clk 0:02:53]}  O-O {[%clk 0:02:54]} 6. Rc1 {[%clk 0:02:53]}  Nbd7 {[%clk 0:02:47]} 7. Nf3 {[%clk 0:02:53]}  b6 {[%clk 0:02:47]} 8. cxd5 {[%clk 0:02:52]}  exd5 {[%clk 0:02:46]} 9. Bd3 {[%clk 0:02:52]}  Bb7 {[%clk 0:02:45]} 10. O-O {[%clk 0:02:51]}  c5 {[%clk 0:02:45]} 11. Qc2 {[%clk 0:02:44]}  h6 {[%clk 0:02:45]} 12. Bh4 {[%clk 0:02:37]}  Rc8 {[%clk 0:02:44]} 13. Rfd1 {[%clk 0:02:29]}  a6 {[%clk 0:02:43]} 14. a4 {[%clk 0:02:27]}  cxd4 {[%clk 0:02:33]} 15. Nxd4 {[%clk 0:02:25]}  Ne4 {[%clk 0:02:32]} 16. Bxe7 {[%clk 0:02:19]}  Qxe7 {[%clk 0:02:33]} 17. Bxe4 {[%clk 0:01:59]}  dxe4 {[%clk 0:02:33]} 18. Nf5 {[%clk 0:01:59]}  Qe6 {[%clk 0:02:02]} 19. Nd6 {[%clk 0:01:59]}  Rc7 {[%clk 0:01:54]} 20. Nxb7 {[%clk 0:01:59]}  Rxb7 {[%clk 0:01:55]} 21. Qxe4 {[%clk 0:01:59]}  Nc5 {[%clk 0:01:51]} 22. Qxe6 {[%clk 0:01:56]}  Nxe6 {[%clk 0:01:52]} 23. Ne4 {[%clk 0:01:40]}  b5 {[%clk 0:01:44]} 24. a5 {[%clk 0:01:30]}  b4 {[%clk 0:01:27]} 25. Nc5 {[%clk 0:01:23]}  Nxc5 {[%clk 0:01:16]} 26. Rxc5 {[%clk 0:01:24]}  Rfb8 {[%clk 0:01:13]} 27. Kf1 {[%clk 0:01:20]}  Rb5 {[%clk 0:01:09]} 28. Rdd5 {[%clk 0:01:19]}  Rxc5 {[%clk 0:01:06]} 29. Rxc5 {[%clk 0:01:20]}  Rb7 {[%clk 0:01:03]} 30. Rc6 {[%clk 0:01:13]}  Ra7 {[%clk 0:00:54]} 31. Rc8+ {[%clk 0:01:06]}  Kh7 {[%clk 0:00:53]} 32. Rb8 {[%clk 0:00:55]}  Rc7 {[%clk 0:00:51]} 33. Rxb4 {[%clk 0:00:54]}  Rc1+ {[%clk 0:00:51]} 34. Ke2 {[%clk 0:00:54]}  Rc2+ {[%clk 0:00:51]} 35. Kf3 {[%clk 0:00:54]}  g5 {[%clk 0:00:45]} 36. Rb6 {[%clk 0:00:52]}  h5 {[%clk 0:00:39]} 37. h3 {[%clk 0:00:48]}  g4+ {[%clk 0:00:25]} 38. hxg4 {[%clk 0:00:48]}  hxg4+ {[%clk 0:00:26]} 39. Kg3 {[%clk 0:00:46]}  Kg7 {[%clk 0:00:24]} 40. f3 {[%clk 0:00:45]}  gxf3 {[%clk 0:00:23]} 41. gxf3 {[%clk 0:00:46]}  f6 {[%clk 0:00:22]} 42. Kf4 {[%clk 0:00:46]}  Kg6 {[%clk 0:00:20]} 43. e4 {[%clk 0:00:45]}  Rh2 {[%clk 0:00:18]} 44. e5 {[%clk 0:00:40]}  Rh4+ {[%clk 0:00:12]} 45. Kg3 {[%clk 0:00:40]}  Ra4 {[%clk 0:00:11]} 46. b4 {[%clk 0:00:38]}  Kg5 {[%clk 0:00:09]} 47. f4+ {[%clk 0:00:36]}  Kf5 {[%clk 0:00:08]} 48. Rxf6+ {[%clk 0:00:35]}  Ke4 {[%clk 0:00:09]} 49. Rb6 {[%clk 0:00:36]}  Ra3+ {[%clk 0:00:09]} 50. Kg4 {[%clk 0:00:36]}  Ra1 {[%clk 0:00:09]} 51. Rxa6 {[%clk 0:00:30]}  Rg1+ {[%clk 0:00:09]} 52. Kh5 {[%clk 0:00:31]}  Kxf4 {[%clk 0:00:10]} 53. e6 {[%clk 0:00:18]}  Kf5 {[%clk 0:00:09]} 54. Kh6 {[%clk 0:00:19]}  Kf6 {[%clk 0:00:09]} 55. Kh7 {[%clk 0:00:19]}  Rg7+ {[%clk 0:00:02]} 56. Kh8 {[%clk 0:00:16]}  Rg1 {[%clk 0:00:03]} 57. Rb6 {[%clk 0:00:16]}  Ke7 {[%clk 0:00:03]} 58. a6 {[%clk 0:00:14]}  Kf8 {[%clk 0:00:04]} 59. Kh7 {[%clk 0:00:14]}  Rg7+ {[%clk 0:00:02]} 60. Kh6 {[%clk 0:00:14]}  Rg1 {[%clk 0:00:03]} 61. a7 {[%clk 0:00:13]}  Ke7 {[%clk 0:00:04]} 62. a8=Q {[%clk 0:00:13]}  Kf6 {[%clk 0:00:05]} 63. Qf8+ {[%clk 0:00:12]}  Ke5 {[%clk 0:00:05]} 64. e7 {[%clk 0:00:12]}  Kd5 {[%clk 0:00:04]} 65. e8=N {[%clk 0:00:10]}  Rh1+ {[%clk 0:00:05]} 66. Kg7 {[%clk 0:00:10]}  Rg1+ {[%clk 0:00:06]} 67. Kf7 {[%clk 0:00:11]}  Rf1+ {[%clk 0:00:07]} 68. Kg8 {[%clk 0:00:11]}  Rxf8+ {[%clk 0:00:08]} 69. Kxf8 {[%clk 0:00:12]}  Kc4 {[%clk 0:00:08]} 70. Rb8 {[%clk 0:00:11]}  Kc3 {[%clk 0:00:08]} 71. Ke7 {[%clk 0:00:12]}  Kc4 {[%clk 0:00:09]} 72. Kd6 {[%clk 0:00:11]}  Kd4 {[%clk 0:00:10]} 73. Kc6 {[%clk 0:00:11]}  Kc4 {[%clk 0:00:11]} 74. b5 {[%clk 0:00:12]}  Kd3 {[%clk 0:00:11]} 75. b6 {[%clk 0:00:13]}  Kc4 {[%clk 0:00:12]} 76. b7 {[%clk 0:00:14]}  Kd3 {[%clk 0:00:13]} 77. Nc7 {[%clk 0:00:15]}  Ke3 {[%clk 0:00:14]} 78. Re8+ {[%clk 0:00:15]}  Kd3 {[%clk 0:00:15]} 79. b8=B {[%clk 0:00:14]}  Kd2 {[%clk 0:00:16]} 80. Rh8 {[%clk 0:00:15]}  Kd3 {[%clk 0:00:17]} 81. Rg8 {[%clk 0:00:16]}  Kc3 {[%clk 0:00:18]} 82. Rf8 {[%clk 0:00:17]}  Kc2 {[%clk 0:00:19]} 83. Re8 {[%clk 0:00:17]}  Kd2 {[%clk 0:00:20]} 84. Rd8+ {[%clk 0:00:18]}  Kc2 {[%clk 0:00:20]} 85. Rc8 {[%clk 0:00:19]}  Kc3 {[%clk 0:00:21]} 86. Rh8 {[%clk 0:00:20]}  Kd3 {[%clk 0:00:22]} 87. Rh7 {[%clk 0:00:21]}  Ke3 {[%clk 0:00:23]} 88. Rh6 {[%clk 0:00:22]}  Kd3 {[%clk 0:00:24]} 89. Rh5 {[%clk 0:00:23]}  Ke2 {[%clk 0:00:25]} 90. Rh4 {[%clk 0:00:24]}  Kd2 {[%clk 0:00:26]} 91. Rh3 {[%clk 0:00:25]}  Ke2 {[%clk 0:00:27]} 92. Ra3 {[%clk 0:00:25]}  Ke1 {[%clk 0:00:28]} 93. Ra4 {[%clk 0:00:26]}  Kd1 {[%clk 0:00:29]} 94. Ra5 {[%clk 0:00:27]}  Kd2 {[%clk 0:00:29]} 95. Ra6 {[%clk 0:00:28]}  Kd3 {[%clk 0:00:30]} 96. Ra7 {[%clk 0:00:29]}  Ke3 {[%clk 0:00:31]} 97. Ra8 {[%clk 0:00:30]}  Ke4 {[%clk 0:00:32]} 98. Ra1 {[%clk 0:00:31]}  Kd4 {[%clk 0:00:33]} 99. Rh1 {[%clk 0:00:31]}  Ke4 {[%clk 0:00:34]} 100. Rh2 {[%clk 0:00:32]}  Kd4 {[%clk 0:00:35]} 101. Rg2 {[%clk 0:00:33]}  Kd3 {[%clk 0:00:36]} 102. Rg3+ {[%clk 0:00:34]}  Kd4 {[%clk 0:00:37]} 103. Nb5+ {[%clk 0:00:33]}  Ke4 {[%clk 0:00:38]} 104. Rg8 {[%clk 0:00:33]}  Ke3 {[%clk 0:00:38]} 105. Kd5 {[%clk 0:00:33]}  Kf3 {[%clk 0:00:39]} 106. Nd4+ {[%clk 0:00:33]}  Ke3 {[%clk 0:00:40]} 107. Bd6 {[%clk 0:00:32]}  Kd3 {[%clk 0:00:40]} 108. Bb4 {[%clk 0:00:32]}  Ke3 {[%clk 0:00:40]} 109. Bc5 {[%clk 0:00:26]}  Kf4 {[%clk 0:00:41]} 110. Ra8 {[%clk 0:00:26]}  Ke3 {[%clk 0:00:41]} 111. Nf5+ {[%clk 0:00:23]}  Kf4 {[%clk 0:00:41]} 112. Ke6 {[%clk 0:00:23]}  Ke4 {[%clk 0:00:42]} 113. Ra4+ {[%clk 0:00:22]}  Kf3 {[%clk 0:00:42]} 114. Rf4+ {[%clk 0:00:23]}  Kxf4 {[%clk 0:00:42]} 115. Bd4 {[%clk 0:00:21]}  Ke4 {[%clk 0:00:42]} 116. Be5 {[%clk 0:00:19]}  Kf3 {[%clk 0:00:43]} 117. Kd5 {[%clk 0:00:18]}  Kg4 {[%clk 0:00:43]} 118. Ke4 {[%clk 0:00:19]}  Kh3 {[%clk 0:00:42]} 119. Kf4 {[%clk 0:00:15]}  Kg2 {[%clk 0:00:43]} 120. Ng3 {[%clk 0:00:13]}  Kh2 {[%clk 0:00:42]} 121. Kf3 {[%clk 0:00:12]}  Kg1 {[%clk 0:00:42]} 122. Bd4+ {[%clk 0:00:12]}  Kh2 {[%clk 0:00:42]} 123. Bc5 {[%clk 0:00:12]}  Kh3 {[%clk 0:00:42]} 124. Bg1 {[%clk 0:00:13]}  Kh4 {[%clk 0:00:41]} 125. Ne4 {[%clk 0:00:11]}  Kh3 {[%clk 0:00:41]} 126. Ng5+ {[%clk 0:00:10]}  Kh4 {[%clk 0:00:42]} 127. Kf4 {[%clk 0:00:10]}  Kh5 {[%clk 0:00:42]} 128. Kf5 {[%clk 0:00:11]}  Kh4 {[%clk 0:00:42]} 129. Bf2+ {[%clk 0:00:11]}  Kh5 {[%clk 0:00:42]} 130. Bg3 {[%clk 0:00:12]}  Kh6 {[%clk 0:00:42]} 131. Ne6 {[%clk 0:00:12]}  Kh5 {[%clk 0:00:43]} 132. Ng7+ {[%clk 0:00:12]}  Kh6 {[%clk 0:00:43]} 133. Kf6 {[%clk 0:00:13]}  Kh7 {[%clk 0:00:43]} 134. Kf7 {[%clk 0:00:13]}  Kh6 {[%clk 0:00:43]} 135. Bf4+ {[%clk 0:00:14]}  Kh7 {[%clk 0:00:43]} 136. Ne6 {[%clk 0:00:13]}  Kh8 {[%clk 0:00:42]} 137. Bg5 {[%clk 0:00:14]}  Kh7 {[%clk 0:00:42]} 138. Nf8+ {[%clk 0:00:14]}  Kh8 {[%clk 0:00:42]} 139. Bf6# {[%clk 0:00:15]} 1-0

[Event "January 2 Early 2024"]
[Site "https://www.chess.com"]
[Date "2024.01.02"]
[Round "7"]
[White "Gutierrez Carmona, Juan Alejandro"]
[Black "Diaz Herquinio, Brahian"]
[Result "1-0"]
[Board "199"]
[TimeControl "180+1"]
[WhiteFideId "5106770"]
[BlackFideId "3809480"]
[WhiteElo "2189"]
[BlackElo "2405"]
[WhiteTeam "MEX"]
[BlackTeam "PER"]
[WhiteClock "0:00:46"]
[BlackClock "0:00:12"]

1. e4 {[%clk 0:03:00]}  c5 {[%clk 0:02:57]} 2. Nf3 {[%clk 0:03:00]}  d6 {[%clk 0:02:58]} 3. Bb5+ {[%clk 0:02:58]}  Nd7 {[%clk 0:02:57]} 4. c4 {[%clk 0:02:57]}  a6 {[%clk 0:02:57]} 5. Ba4 {[%clk 0:02:57]}  Nf6 {[%clk 0:02:57]} 6. Nc3 {[%clk 0:02:58]}  e6 {[%clk 0:02:47]} 7. O-O {[%clk 0:02:57]}  Be7 {[%clk 0:02:47]} 8. a3 {[%clk 0:02:50]}  O-O {[%clk 0:02:47]} 9. b4 {[%clk 0:02:50]}  cxb4 {[%clk 0:02:43]} 10. axb4 {[%clk 0:02:50]}  Qc7 {[%clk 0:02:43]} 11. Bb3 {[%clk 0:02:42]}  b6 {[%clk 0:02:39]} 12. d4 {[%clk 0:02:38]}  Bb7 {[%clk 0:02:37]} 13. Re1 {[%clk 0:02:37]}  b5 {[%clk 0:02:37]} 14. c5 {[%clk 0:02:19]}  dxc5 {[%clk 0:02:25]} 15. dxc5 {[%clk 0:02:14]}  Rfd8 {[%clk 0:02:23]} 16. Qc2 {[%clk 0:02:04]}  Ne5 {[%clk 0:01:50]} 17. Nxe5 {[%clk 0:01:56]}  Qxe5 {[%clk 0:01:51]} 18. Bb2 {[%clk 0:01:56]}  Qh5 {[%clk 0:01:45]} 19. h3 {[%clk 0:01:52]}  Qg6 {[%clk 0:01:40]} 20. Re3 {[%clk 0:01:30]}  Nh5 {[%clk 0:01:33]} 21. Rae1 {[%clk 0:01:20]}  Bf6 {[%clk 0:01:08]} 22. Qc1 {[%clk 0:01:01]}  Bd4 {[%clk 0:01:06]} 23. Rf3 {[%clk 0:00:54]}  Nf6 {[%clk 0:00:34]} 24. Nd5 {[%clk 0:00:47]}  Bxb2 {[%clk 0:00:29]} 25. Ne7+ {[%clk 0:00:47]}  Kh8 {[%clk 0:00:18]} 26. Nxg6+ {[%clk 0:00:48]}  hxg6 {[%clk 0:00:18]} 27. Qxb2 {[%clk 0:00:49]}  Bxe4 {[%clk 0:00:16]} 28. Rxf6 {[%clk 0:00:47]}  gxf6 {[%clk 0:00:13]} 29. Rxe4 {[%clk 0:00:47]}  Kg8 {[%clk 0:00:12]} 30. Qxf6 {[%clk 0:00:46]} 1-0